fUST/lending_fUST_20241118
["ID","MTS","AMOUNT","RATE_DAILY","PERIOD"]
[342438942,1731875440633,-1576.89,0.00019178,2]
[342438943,1731875440643,-500.0,0.00019178,2]
[342438944,1731875440652,-500.0,0.00019178,2]
[342438945,1731875440662,-500.0,0.00019178,2]
[342438946,1731875440676,-1693.62,0.00019178,2]
[342438947,1731875440689,-500.0,0.00019178,2]
[342438948,1731875440699,-500.0,0.00019178,2]
[342438949,1731875440708,-500.0,0.00019178,2]
[342438950,1731875440717,-500.0,0.00019178,2]
[342438951,1731875440726,-1427.88,0.00019178,2]
[342438952,1731875440736,-1386.34,0.00019178,2]
[342438953,1731875440746,-500.0,0.00019178,2]
[342438954,1731875440755,-643.0,0.00019178,2]
[342438955,1731875440764,-17.58430498,0.00019178,2]
[342438956,1731875440837,-150.112233,0.000191,2]
[342438957,1731875440846,-2022.88534789,0.00019178,2]
[342438975,1731875442755,-150.112233,0.000164,2]
[342438976,1731875442765,-150.112233,0.00017,2]
[342438977,1731875442775,-150.112233,0.000177,2]
[342438978,1731875442785,-150.112233,0.000184,2]
[342438979,1731875442795,-674.14034713,0.00019178,2]
[342438980,1731875442804,-699.52,0.00019178,2]
[342438981,1731875442823,-500.0,0.00019178,2]
[342438983,1731875442834,-500.0,0.00019178,2]
[342438984,1731875442844,-1632.09072087,0.00019178,2]
[342438987,1731875442856,-17686.43927913,0.00019178,2]
[342438989,1731875442865,-500.0,0.00019178,2]
[342438990,1731875442875,-500.0,0.00019178,2]
[342438991,1731875442884,-1885.62,0.00019178,2]
[342438993,1731875442894,-1252.92,0.00019178,2]
[342438995,1731875442903,-1111.0,0.00019178,2]
[342438996,1731875442912,-1973.82,0.00019178,2]
[342438997,1731875442922,-500.0,0.00019178,2]
[342438998,1731875442931,-614.58,0.00019178,2]
[342438999,1731875442941,-500.0,0.00019178,2]
[342439000,1731875442950,-1777.18,0.00019178,2]
[342439001,1731875442960,-23567.28,0.00019178,2]
[342439002,1731875442970,-985.19,0.00019178,2]
[342439003,1731875442979,-718.69,0.00019178,2]
[342439004,1731875442989,-821.47,0.00019178,2]
[342439005,1731875442999,-500.0,0.00019178,2]
[342439006,1731875443008,-500.0,0.00019178,2]
[342439007,1731875443017,-500.0,0.00019178,2]
[342439008,1731875443027,-2738.8,0.00019178,2]
[342439009,1731875443036,-2929.43682587,0.00019178,2]
[342439010,1731875443048,-11812.42942889,0.00019178,2]
[342439025,1731875445745,-10876.40374524,0.00019178,2]
[342439026,1731875445754,-911.17,0.00019178,2]
[342439027,1731875445763,-500.0,0.00019178,2]
[342439028,1731875445772,-500.0,0.00019178,2]
[342439029,1731875445782,-1275.6,0.00019178,2]
[342439030,1731875445791,-651.83,0.00019178,2]
[342439031,1731875445800,-1521.24,0.00019178,2]
[342439032,1731875445809,-2267.79,0.00019178,2]
[342439033,1731875445822,-45745.84,0.00019178,2]
[342439034,1731875445831,-531.60064049,0.00019178,2]
[342439035,1731875445840,-500.0,0.00019178,2]
[342439036,1731875445849,-771.6,0.00019178,2]
[342439037,1731875445859,-1177.64,0.00019178,2]
[342439038,1731875445868,-2000.0,0.00019178,2]
[342439039,1731875445877,-500.0,0.00019178,2]
[342439040,1731875445887,-1905.56,0.00019178,2]
[342439041,1731875445897,-648.79,0.00019178,2]
[342439042,1731875445906,-4871.19,0.00019178,2]
[342439043,1731875445915,-772.06,0.00019178,2]
[342439045,1731875445924,-500.0,0.00019178,2]
[342439046,1731875445933,-772.86,0.00019178,2]
[342439047,1731875445942,-500.0,0.00019178,2]
[342439048,1731875445952,-187.482444,0.00019178,2]
[342439049,1731875445961,-500.0,0.00019178,2]
[342439050,1731875445970,-500.0,0.00019178,2]
[342439051,1731875445980,-596.1,0.00019178,2]
[342439052,1731875445989,-500.0,0.00019178,2]
[342439053,1731875445998,-1950.41,0.00019178,2]
[342439054,1731875446007,-835.33,0.00019178,2]
[342439055,1731875446016,-500.0,0.00019178,2]
[342439056,1731875446025,-1257.12,0.00019178,2]
[342439057,1731875446034,-500.0,0.00019178,2]
[342439058,1731875446043,-821.87,0.00019178,2]
[342439059,1731875446052,-500.0,0.00019178,2]
[342439060,1731875446063,-541.95,0.00019178,2]
[342439061,1731875446073,-500.0,0.00019178,2]
[342439062,1731875446081,-703.43,0.00019178,2]
[342439063,1731875446091,-2336.0,0.00019178,2]
[342439064,1731875446100,-500.0,0.00019178,2]
[342439065,1731875446110,-1761.04,0.00019178,2]
[342439066,1731875446119,-1498.26,0.00019178,2]
[342439067,1731875446128,-4810.56,0.00019178,2]
[342439068,1731875446136,-609.31,0.00019178,2]
[342439069,1731875446145,-500.0,0.00019178,2]
[342439070,1731875446155,-500.0,0.00019178,2]
[342439071,1731875446164,-500.0,0.00019178,2]
[342439072,1731875446173,-500.0,0.00019178,2]
[342439073,1731875446182,-496.32666179,0.00019178,2]
[342439074,1731875446203,-3.67333821,0.00019178,2]
[342439075,1731875446212,-500.0,0.00019178,2]
[342439076,1731875446221,-340.73,0.00019178,2]
[342439077,1731875446231,-814.15,0.00019178,2]
[342439078,1731875446240,-500.0,0.00019178,2]
[342439079,1731875446249,-500.0,0.00019178,2]
[342439080,1731875446258,-500.0,0.00019178,2]
[342439081,1731875446267,-5129.93149679,0.00019178,2]
[342439961,1731875847733,165.038682,0.00013973,2]
[342439966,1731876507813,165.038682,0.00013973,2]
[342439995,1731876632122,-300.0,0.00017673,2]
[342439996,1731876632132,-300.0,0.00017673,2]
[342439997,1731876632141,-17085.2728504,0.00017674,2]
[342439998,1731876632151,-12630.9094028,0.00017721,2]
[342440000,1731876632161,-1733.41413636,0.00017757,2]
[342440002,1731876632172,-860.2637443,0.00017857,2]
[342440004,1731876632182,-531.738795,0.00017857,2]
[342440006,1731876632191,-173.217044,0.00018083,2]
[342440008,1731876632201,-1733.41413631,0.0001865,2]
[342440010,1731876632210,-173.217044,0.00018768,2]
[342440012,1731876632219,-613.90918513,0.00018822,2]
[342440014,1731876632229,-8255.47637945,0.00018822,2]
[342440016,1731876632239,-150.0,0.0001898,2]
[342440018,1731876632248,-2407.156,0.0001898,2]
[342440020,1731876632258,-1113.0,0.0001898,2]
[342440022,1731876632267,-175.053,0.0001898,2]
[342440024,1731876632277,-8255.47637946,0.00019014,2]
[342440026,1731876632286,-155.80948453,0.00019078,2]
[342440028,1731876632295,-33060.88070268,0.00019078,2]
[342440030,1731876632304,-1000.0,0.00019078,2]
[342440032,1731876632315,-4739.56241927,0.00019078,2]
[342440034,1731876632324,-150.2991622,0.00019173,2]
[342440036,1731876632333,-500.0,0.00019173,2]
[342440038,1731876632342,-500.34629178,0.00019173,2]
[342440040,1731876632352,-354.16036508,0.00019177,2]
[342440042,1731876632362,-500.0,0.00019177,2]
[342440044,1731876632372,-191.84349864,0.00019177,2]
[342440046,1731876632381,-245.10520584,0.00019177,2]
[342440048,1731876632391,-500.0,0.00019178,2]
[342440050,1731876632400,-156.013036,0.00019178,2]
[342440052,1731876632409,-500.0,0.00019178,2]
[342440054,1731876632419,-500.0,0.00019178,2]
[342440056,1731876632430,-500.0,0.00019178,2]
[342440058,1731876632439,-236.91,0.00019178,2]
[342440060,1731876632449,-500.0,0.00019178,2]
[342440062,1731876632458,-500.0,0.00019178,2]
[342440064,1731876632468,-500.0,0.00019178,2]
[342440066,1731876632477,-500.0,0.00019178,2]
[342440068,1731876632487,-500.0,0.00019178,2]
[342440070,1731876632496,-500.0,0.00019178,2]
[342440072,1731876632506,-500.0,0.00019178,2]
[342440075,1731876632516,-500.0,0.00019178,2]
[342440077,1731876632526,-500.0,0.00019178,2]
[342440079,1731876632536,-745.93,0.00019178,2]
[342440081,1731876632545,-500.0,0.00019178,2]
[342440083,1731876632554,-528.30932682,0.00019178,2]
[342440085,1731876632564,-545.33,0.00019178,2]
[342440087,1731876632573,-500.0,0.00019178,2]
[342440089,1731876632583,-500.0,0.00019178,2]
[342440091,1731876632592,-500.0,0.00019178,2]
[342440093,1731876632602,-500.0,0.00019178,2]
[342440095,1731876632611,-500.0,0.00019178,2]
[342440097,1731876632621,-500.0,0.00019178,2]
[342440099,1731876632630,-948.57,0.00019178,2]
[342440101,1731876632640,-733.36,0.00019178,2]
[342440103,1731876632649,-151.0,0.00019178,2]
[342440105,1731876632659,-500.0,0.00019178,2]
[342440107,1731876632668,-500.0,0.00019178,2]
[342440109,1731876632682,-1191.48,0.00019178,2]
[342440111,1731876632691,-500.04,0.00019178,2]
[342440113,1731876632701,-500.0,0.00019178,2]
[342440115,1731876632711,-657.25,0.00019178,2]
[342440117,1731876632721,-196.65691674,0.00019178,2]
[342440119,1731876632730,-500.0,0.00019178,2]
[342440121,1731876632739,-500.0,0.00019178,2]
[342440123,1731876632749,-500.0,0.00019178,2]
[342440125,1731876632759,-534.74,0.00019178,2]
[342440126,1731876632770,-644.82619823,0.00019178,2]
[342440129,1731876632780,-470.70331374,0.00019178,2]
[342440131,1731876632791,-543.15,0.00019178,2]
[342440132,1731876632802,-500.0,0.00019178,2]
[342440133,1731876632811,-500.0,0.00019178,2]
[342440135,1731876632820,-500.0,0.00019178,2]
[342440137,1731876632830,-557.08,0.00019178,2]
[342440139,1731876632839,-500.0,0.00019178,2]
[342440141,1731876632849,-500.0,0.00019178,2]
[342440143,1731876632858,-768.44,0.00019178,2]
[342440145,1731876632868,-1475.87,0.00019178,2]
[342440147,1731876632877,-216.95041246,0.00019178,2]
[342440149,1731876632887,-173.387,0.00019178,2]
[342440151,1731876632897,-531.67,0.00019178,2]
[342440153,1731876632907,-500.0,0.00019178,2]
[342440156,1731876632916,-500.88538668,0.00019178,2]
[342440158,1731876632929,-151.0,0.00019178,2]
[342440160,1731876632939,-151.0,0.00019178,2]
[342440162,1731876632950,-151.0,0.00019178,2]
[342440164,1731876632961,-500.0,0.00019178,2]
[342440166,1731876632970,-619.09736623,0.00019178,2]
[342440168,1731876632980,-151.0,0.00019178,2]
[342440170,1731876632990,-151.0,0.00019178,2]
[342440172,1731876633003,-151.0,0.00019178,2]
[342440174,1731876633014,-151.0,0.00019178,2]
[342440176,1731876633024,-151.0,0.00019178,2]
[342440178,1731876633035,-151.0,0.00019178,2]
[342440180,1731876633045,-151.0,0.00019178,2]
[342440183,1731876633055,-151.0,0.00019178,2]
[342440185,1731876633064,-258.500025,0.00019178,2]
[342440187,1731876633074,-527.96753815,0.00019178,2]
[342440188,1731876633084,-500.0,0.00019178,2]
[342440191,1731876633093,-500.0,0.00019178,2]
[342440192,1731876633103,-151.0,0.00019178,2]
[342440194,1731876633112,-151.0,0.00019178,2]
[342440196,1731876633122,-151.0,0.00019178,2]
[342440199,1731876633132,-151.0,0.00019178,2]
[342440200,1731876633142,-185.128584,0.00019178,2]
[342440202,1731876633151,-500.0,0.00019178,2]
[342440204,1731876633161,-509.54499334,0.00019178,2]
[342440206,1731876633170,-500.0,0.00019178,2]
[342440208,1731876633185,-500.0,0.00019178,2]
[342440210,1731876633194,-500.0,0.00019178,2]
[342440212,1731876633204,-654.9,0.00019178,2]
[342440214,1731876633214,-1252.9,0.00019178,2]
[342440216,1731876633224,-500.0,0.00019178,2]
[342440219,1731876633235,-161.34449979,0.00019178,2]
[342440220,1731876633245,-476.87326162,0.00019178,2]
[342440223,1731876633255,-587.49,0.00019178,2]
[342440225,1731876633264,-400.33747725,0.00019178,2]
[342440227,1731876633274,-500.0,0.00019178,2]
[342440229,1731876633284,-500.0,0.00019178,2]
[342440231,1731876633294,-370.96666188,0.00019178,2]
[342440233,1731876633303,-500.0,0.00019178,2]
[342440235,1731876633313,-652.71,0.00019178,2]
[342440237,1731876633322,-817.55,0.00019178,2]
[342440239,1731876633332,-1278.03,0.00019178,2]
[342440241,1731876633342,-500.0,0.00019178,2]
[342440243,1731876633351,-627.4,0.00019178,2]
[342440245,1731876633360,-582.16,0.00019178,2]
[342440247,1731876633370,-500.0,0.00019178,2]
[342440249,1731876633379,-500.0,0.00019178,2]
[342440251,1731876633389,-537.33,0.00019178,2]
[342440253,1731876633399,-1115.09,0.00019178,2]
[342440255,1731876633408,-500.0,0.00019178,2]
[342440257,1731876633418,-500.0,0.00019178,2]
[342440259,1731876633432,-500.0,0.00019178,2]
[342440261,1731876633441,-175.56260568,0.00019178,2]
[342440263,1731876633451,-801.29,0.00019178,2]
[342440265,1731876633460,-500.0,0.00019178,2]
[342440267,1731876633470,-235.62282076,0.00019178,2]
[342440269,1731876633479,-657.91,0.00019178,2]
[342440271,1731876633489,-1350.99,0.00019178,2]
[342440273,1731876633499,-500.0,0.00019178,2]
[342440275,1731876633508,-673.97,0.00019178,2]
[342440277,1731876633518,-500.0,0.00019178,2]
[342440279,1731876633527,-500.0,0.00019178,2]
[342440281,1731876633537,-500.0,0.00019178,2]
[342440283,1731876633546,-500.0,0.00019178,2]
[342440285,1731876633555,-578.75287481,0.00019178,2]
[342440288,1731876633566,-500.0,0.00019178,2]
[342440290,1731876633575,-500.0,0.00019178,2]
[342440292,1731876633585,-500.0,0.00019178,2]
[342440294,1731876633594,-515.30509881,0.00019178,2]
[342440295,1731876633603,-500.0,0.00019178,2]
[342440298,1731876633613,-500.0,0.00019178,2]
[342440299,1731876633622,-678.88,0.00019178,2]
[342440302,1731876633633,-500.0,0.00019178,2]
[342440304,1731876633643,-1710.56,0.00019178,2]
[342440306,1731876633653,-500.0,0.00019178,2]
[342440308,1731876633662,-631.53,0.00019178,2]
[342440309,1731876633674,-500.0,0.00019178,2]
[342440312,1731876633685,-558.20422741,0.00019178,2]
[342440313,1731876633706,-504.83358468,0.00019178,2]
[342440315,1731876633734,-502.27935217,0.00019178,2]
[342440317,1731876633761,-854.35,0.00019178,2]
[342440319,1731876633794,-503.15068486,0.00019178,2]
[342440321,1731876633837,-500.0,0.00019178,2]
[342440322,1731876633887,-500.0,0.00019178,2]
[342440324,1731876633949,-500.0,0.00019178,2]
[342440326,1731876633968,-500.0,0.00019178,2]
[342440328,1731876633979,-703.84,0.00019178,2]
[342440330,1731876633989,-542.00030324,0.00019178,2]
[342440331,1731876633999,-691.21,0.00019178,2]
[342440332,1731876634216,-520.41102216,0.00019178,2]
[342440333,1731876634226,-501.81592954,0.00019178,2]
[342440334,1731876634236,-609.8,0.00019178,2]
[342440335,1731876634246,-1090.15,0.00019178,2]
[342440336,1731876634256,-689.05,0.00019178,2]
[342440337,1731876634266,-500.0,0.00019178,2]
[342440338,1731876634276,-500.0,0.00019178,2]
[342440339,1731876634286,-500.0,0.00019178,2]
[342440340,1731876634296,-151.0,0.00019178,2]
[342440341,1731876634306,-151.0,0.00019178,2]
[342440342,1731876634315,-151.0,0.00019178,2]
[342440343,1731876634326,-506.32671332,0.00019178,2]
[342440344,1731876634336,-151.0,0.00019178,2]
[342440345,1731876634347,-293.474086,0.00019178,2]
[342440346,1731876634357,-500.0,0.00019178,2]
[342440347,1731876634367,-1478.69,0.00019178,2]
[342440348,1731876634377,-500.0,0.00019178,2]
[342440349,1731876634387,-500.0,0.00019178,2]
[342440350,1731876634398,-500.0,0.00019178,2]
[342440351,1731876634408,-500.0,0.00019178,2]
[342440352,1731876634418,-500.0,0.00019178,2]
[342440353,1731876634434,-425.1137878,0.00019178,2]
[342440354,1731876634445,-500.0,0.00019178,2]
[342440355,1731876634456,-500.0,0.00019178,2]
[342440356,1731876634467,-500.0,0.00019178,2]
[342440357,1731876634477,-500.0,0.00019178,2]
[342440358,1731876634488,-634.81314844,0.00019178,2]
[342440359,1731876634499,-500.0,0.00019178,2]
[342440360,1731876634509,-500.0,0.00019178,2]
[342440361,1731876634518,-500.0,0.00019178,2]
[342440362,1731876634528,-500.0,0.00019178,2]
[342440363,1731876634538,-500.0,0.00019178,2]
[342440364,1731876634548,-500.0,0.00019178,2]
[342440365,1731876634558,-501.22589495,0.00019178,2]
[342440366,1731876634567,-1277.96,0.00019178,2]
[342440367,1731876634576,-1024.44,0.00019178,2]
[342440368,1731876634586,-506.34602369,0.00019178,2]
[342440369,1731876634596,-500.0,0.00019178,2]
[342440370,1731876634605,-500.0,0.00019178,2]
[342440371,1731876634614,-500.0,0.00019178,2]
[342440372,1731876634623,-808.45,0.00019178,2]
[342440373,1731876634633,-500.0,0.00019178,2]
[342440374,1731876634642,-500.0,0.00019178,2]
[342440375,1731876634651,-500.0,0.00019178,2]
[342440376,1731876634661,-180.98018161,0.00019178,2]
[342440377,1731876634670,-500.0,0.00019178,2]
[342440378,1731876634682,-500.0,0.00019178,2]
[342440379,1731876634691,-927.12,0.00019178,2]
[342440380,1731876634701,-500.0,0.00019178,2]
[342440381,1731876634710,-624.67,0.00019178,2]
[342440382,1731876634719,-1234.32,0.00019178,2]
[342440383,1731876634728,-500.0,0.00019178,2]
[342440384,1731876634737,-500.0,0.00019178,2]
[342440385,1731876634747,-644.39,0.00019178,2]
[342440386,1731876634756,-1128.57,0.00019178,2]
[342440387,1731876634765,-649.2,0.00019178,2]
[342440388,1731876634774,-760.72,0.00019178,2]
[342440389,1731876634783,-500.0,0.00019178,2]
[342440390,1731876634793,-3002.6,0.00019178,2]
[342440391,1731876634802,-500.0,0.00019178,2]
[342440392,1731876634811,-592.09,0.00019178,2]
[342440393,1731876634820,-2079.06,0.00019178,2]
[342440394,1731876634829,-500.0,0.00019178,2]
[342440395,1731876634838,-500.0,0.00019178,2]
[342440396,1731876634847,-500.0,0.00019178,2]
[342440397,1731876634857,-840.93,0.00019178,2]
[342440398,1731876634866,-1514.72,0.00019178,2]
[342440399,1731876634875,-519.46607079,0.00019178,2]
[342440400,1731876634885,-500.0,0.00019178,2]
[342440401,1731876634894,-160.33742966,0.00019178,2]
[342440402,1731876634903,-500.0,0.00019178,2]
[342440403,1731876634912,-500.0,0.00019178,2]
[342440404,1731876634921,-654.25,0.00019178,2]
[342440405,1731876634931,-604.76,0.00019178,2]
[342440406,1731876634945,-500.0,0.00019178,2]
[342440407,1731876634956,-500.0,0.00019178,2]
[342440408,1731876634965,-810.0,0.00019178,2]
[342440409,1731876634975,-500.0,0.00019178,2]
[342440410,1731876634984,-500.0,0.00019178,2]
[342440411,1731876634994,-1924.69,0.00019178,2]
[342440412,1731876635003,-500.0,0.00019178,2]
[342440413,1731876635012,-500.0,0.00019178,2]
[342440414,1731876635021,-500.0,0.00019178,2]
[342440415,1731876635031,-500.0,0.00019178,2]
[342440416,1731876635040,-2569.49,0.00019178,2]
[342440417,1731876635049,-2284.56,0.00019178,2]
[342440418,1731876635058,-200.0,0.00019178,4]
[342440419,1731876635067,-500.0,0.00019178,2]
[342440420,1731876635076,-500.0,0.00019178,2]
[342440421,1731876635086,-500.0,0.00019178,2]
[342440422,1731876635095,-3103.16,0.00019178,2]
[342440423,1731876635104,-500.0,0.00019178,2]
[342440424,1731876635114,-195.69262967,0.00019178,2]
[342440425,1731876635124,-500.0,0.00019178,2]
[342440426,1731876635133,-500.0,0.00019178,2]
[342440427,1731876635142,-1582.25,0.00019178,2]
[342440428,1731876635151,-500.0,0.00019178,2]
[342440429,1731876635160,-500.0,0.00019178,2]
[342440430,1731876635170,-150.06,0.00019178,2]
[342440431,1731876635181,-500.0,0.00019178,2]
[342440432,1731876635190,-500.0,0.00019178,2]
[342440433,1731876635200,-1007.34,0.00019178,2]
[342440434,1731876635209,-755.97,0.00019178,2]
[342440435,1731876635218,-625.46,0.00019178,2]
[342440436,1731876635228,-382.37886702,0.00019178,2]
[342440437,1731876635237,-500.0,0.00019178,2]
[342440438,1731876635246,-500.0,0.00019178,2]
[342440439,1731876635255,-183.892087,0.00019178,2]
[342440440,1731876635265,-183.892087,0.00019178,2]
[342440441,1731876635274,-500.0,0.00019178,2]
[342440442,1731876635284,-183.892087,0.00019178,2]
[342440443,1731876635293,-183.892087,0.00019178,2]
[342440444,1731876635302,-183.892087,0.00019178,2]
[342440445,1731876635312,-500.0,0.00019178,2]
[342440446,1731876635321,-183.892087,0.00019178,2]
[342440447,1731876635330,-500.0,0.00019178,2]
[342440448,1731876635340,-183.892087,0.00019178,2]
[342440449,1731876635349,-183.892087,0.00019178,2]
[342440450,1731876635358,-183.892087,0.00019178,2]
[342440451,1731876635367,-183.892087,0.00019178,2]
[342440452,1731876635377,-183.892087,0.00019178,2]
[342440453,1731876635386,-183.892087,0.00019178,2]
[342440454,1731876635396,-183.892087,0.00019178,2]
[342440455,1731876635405,-183.892087,0.00019178,2]
[342440456,1731876635415,-500.0,0.00019178,2]
[342440457,1731876635425,-183.892087,0.00019178,2]
[342440458,1731876635434,-183.892087,0.00019178,2]
[342440459,1731876635443,-183.892087,0.00019178,2]
[342440460,1731876635452,-183.892087,0.00019178,2]
[342440461,1731876635462,-183.892087,0.00019178,2]
[342440462,1731876635471,-183.892086,0.00019178,2]
[342440463,1731876635480,-500.0,0.00019178,2]
[342440464,1731876635489,-500.0,0.00019178,2]
[342440465,1731876635498,-549.81,0.00019178,2]
[342440466,1731876635508,-500.0,0.00019178,2]
[342440467,1731876635517,-1913.33,0.00019178,2]
[342440468,1731876635527,-500.0,0.00019178,2]
[342440469,1731876635536,-500.0,0.00019178,2]
[342440470,1731876635546,-852.55,0.00019178,2]
[342440471,1731876635556,-500.0,0.00019178,2]
[342440472,1731876635565,-500.0,0.00019178,2]
[342440473,1731876635574,-3266.9,0.00019178,2]
[342440474,1731876635583,-151.0,0.00019178,2]
[342440475,1731876635593,-500.0,0.00019178,2]
[342440476,1731876635602,-500.0,0.00019178,2]
[342440477,1731876635611,-500.0,0.00019178,2]
[342440478,1731876635620,-500.0,0.00019178,2]
[342440479,1731876635630,-512.13,0.00019178,2]
[342440480,1731876635639,-299.98,0.00019178,2]
[342440481,1731876635649,-559.34996789,0.00019178,2]
[342440482,1731876635659,-150.06,0.00019178,2]
[342440483,1731876635668,-536.34,0.00019178,2]
[342440484,1731876635679,-500.0,0.00019178,2]
[342440485,1731876635690,-1511.95,0.00019178,2]
[342440486,1731876635699,-500.0,0.00019178,2]
[342440487,1731876635709,-150.06,0.00019178,2]
[342440488,1731876635719,-344.89142712,0.00019178,2]
[342440489,1731876635730,-500.0,0.00019178,2]
[342440490,1731876635748,-561.5,0.00019178,2]
[342440491,1731876635762,-500.0,0.00019178,2]
[342440492,1731876635772,-755.14,0.00019178,2]
[342440493,1731876635782,-2622.33,0.00019178,2]
[342440494,1731876635792,-151.0,0.00019178,2]
[342440495,1731876635803,-649.92872053,0.00019178,2]
[342440496,1731876635812,-500.0,0.00019178,2]
[342440497,1731876635822,-500.0,0.00019178,2]
[342440498,1731876636008,-500.0,0.00019178,2]
[342440499,1731876636018,-1622.7,0.00019178,2]
[342440500,1731876636029,-1912.41,0.00019178,2]
[342440501,1731876636038,-500.0,0.00019178,2]
[342440502,1731876636047,-500.0,0.00019178,2]
[342440503,1731876636058,-500.0,0.00019178,2]
[342440504,1731876636068,-500.0,0.00019178,2]
[342440505,1731876636077,-500.0,0.00019178,2]
[342440506,1731876636087,-896.38,0.00019178,2]
[342440507,1731876636096,-944.14,0.00019178,2]
[342440508,1731876636105,-1128.52,0.00019178,2]
[342440509,1731876636115,-1260.54,0.00019178,2]
[342440510,1731876636124,-500.0,0.00019178,2]
[342440511,1731876636134,-500.0,0.00019178,2]
[342440512,1731876636144,-500.0,0.00019178,2]
[342440513,1731876636153,-500.0,0.00019178,2]
[342440514,1731876636162,-500.0,0.00019178,2]
[342440515,1731876636173,-500.0,0.00019178,2]
[342440516,1731876636183,-500.0,0.00019178,2]
[342440517,1731876636192,-500.0,0.00019178,2]
[342440518,1731876636204,-500.0,0.00019178,2]
[342440519,1731876636214,-500.0,0.00019178,2]
[342440520,1731876636224,-500.0,0.00019178,2]
[342440521,1731876636233,-500.0,0.00019178,2]
[342440522,1731876636244,-500.0,0.00019178,2]
[342440523,1731876636253,-500.0,0.00019178,2]
[342440524,1731876636263,-500.0,0.00019178,2]
[342440525,1731876636272,-500.0,0.00019178,2]
[342440526,1731876636282,-500.0,0.00019178,2]
[342440527,1731876636291,-873.2,0.00019178,2]
[342440528,1731876636301,-500.0,0.00019178,2]
[342440529,1731876636310,-1038.49,0.00019178,2]
[342440530,1731876636320,-172.08,0.00019178,2]
[342440531,1731876636330,-500.0,0.00019178,2]
[342440532,1731876636339,-1069.57,0.00019178,2]
[342440533,1731876636349,-1476.64,0.00019178,2]
[342440534,1731876636359,-500.0,0.00019178,2]
[342440535,1731876636368,-626.08,0.00019178,2]
[342440536,1731876636378,-500.0,0.00019178,2]
[342440537,1731876636387,-3702.62,0.00019178,2]
[342440538,1731876636397,-500.0,0.00019178,2]
[342440539,1731876636406,-500.0,0.00019178,2]
[342440540,1731876636416,-512.58873141,0.00019178,2]
[342440541,1731876636428,-1573.97,0.00019178,2]
[342440542,1731876636437,-4437.89,0.00019178,2]
[342440543,1731876636447,-500.0,0.00019178,2]
[342440544,1731876636457,-500.0,0.00019178,2]
[342440545,1731876636466,-655.37,0.00019178,2]
[342440546,1731876636476,-500.0,0.00019178,2]
[342440547,1731876636486,-500.0,0.00019178,2]
[342440548,1731876636496,-1316.44,0.00019178,2]
[342440549,1731876636507,-500.0,0.00019178,2]
[342440550,1731876636528,-500.0,0.00019178,2]
[342440551,1731876636549,-1016.91,0.00019178,2]
[342440552,1731876636570,-580.20563145,0.00019178,2]
[342440553,1731876636593,-500.0,0.00019178,2]
[342440554,1731876636615,-500.0,0.00019178,2]
[342440555,1731876636638,-2757.19,0.00019178,2]
[342440556,1731876636660,-638.3,0.00019178,2]